bitfinex-derivatives/quotes_BTCF0:USTF0_20210102
["timestamp","ask_amount","ask_price","bid_price","bid_amount"]
[1609606510888,0.00772076,32410.0,32382.0,0.03822562]
[1609606511489,0.00772076,32410.0,32384.0,0.18043158]
[1609606511890,0.00772076,32410.0,32385.0,0.03822282]
[1609606512091,1.0,32411.0,32385.0,0.03822282]
[1609606512291,1.0,32410.0,32385.0,0.03822282]
[1609606512691,1.16948,32410.0,32385.0,0.03822282]
[1609606513295,0.03,32387.0,32385.0,0.03822282]
[1609606514896,0.18043158,32393.0,32386.0,2.0481626]
[1609606515095,1.16948,32410.0,32386.0,2.0381626]
[1609606515295,1.16948,32410.0,32387.0,0.11380042]
[1609606515495,1.16948,32410.0,32393.0,0.18043158]
[1609606515695,1.16948,32410.0,32387.0,0.11380042]
[1609606515895,1.0,32409.0,32394.0,0.03821474]
[1609606516096,1.0,32409.0,32388.0,0.03821384]
[1609606516298,0.16948,32410.0,32388.0,0.03821384]
[1609606516496,0.16948,32410.0,32395.0,0.03821343]
[1609606516696,0.16948,32410.0,32389.0,0.03821316]
[1609606516897,0.16948,32410.0,32387.0,3.6648]
[1609606517297,0.16948,32410.0,32390.0,0.03820946]
[1609606517497,0.16948,32410.0,32407.0,0.18043158]
[1609606517698,1.0,32418.0,32393.0,2.23599227]
[1609606518098,1.0,32418.0,32394.0,0.11379057]
[1609606518298,0.2807,32419.0,32394.0,0.11379057]
[1609606518899,0.38,32400.0,32392.0,2.22628577]
[1609606519099,0.38,32400.0,32395.0,0.03821256]
[1609606519298,0.38,32400.0,32393.0,0.11378237]
[1609606519498,0.38,32400.0,32399.0,0.18043158]
[1609606519899,0.38,32400.0,32399.0,0.21863923]
[1609606520299,0.1354,32400.0,32399.0,0.21863923]
[1609606520500,0.15414,32411.0,32399.0,0.21863923]
[1609606520700,1.0,32443.0,32399.0,0.37036923]
[1609606520901,1.0,32443.0,32400.0,0.03820115]
[1609606521302,1.0,32442.0,32400.0,0.03820115]
[1609606521504,1.16587,32442.0,32426.0,0.18043158]
[1609606522101,1.16587,32442.0,32427.0,0.03819784]
[1609606522703,0.16587,32442.0,32427.0,0.03819784]
[1609606523603,0.18043158,32440.0,32438.0,0.18043158]
[1609606524206,0.16587,32442.0,32439.0,0.03818803]
[1609606525004,1.69448288,32467.0,32439.0,0.03818803]
[1609606525505,1.69448288,32467.0,32461.0,0.18043158]
[1609606525704,0.69448288,32467.0,32461.0,0.18043158]
[1609606526104,0.69448288,32467.0,32461.0,0.21860144]
[1609606526306,0.00810744,32465.0,32461.0,0.21860144]
[1609606526906,0.00810744,32465.0,32462.0,0.03815758]
[1609606527107,0.00810744,32465.0,32462.0,0.00042645]
[1609606527307,0.00810744,32465.0,32463.0,0.00042645]
[1609606527507,0.18043158,32464.0,32463.0,0.00042645]
[1609606527707,0.29532158,32464.0,32462.0,0.00042647]
[1609606527908,0.29532158,32464.0,32463.0,0.00042645]
[1609606528509,0.29532158,32464.0,32462.0,0.00042645]
[1609606528708,0.29532158,32464.0,32463.0,0.00042645]
[1609606529211,0.29532158,32464.0,32447.0,0.03815965]
[1609606529510,0.11489,32464.0,32463.0,0.00042647]
[1609606529710,0.11489,32464.0,32454.0,0.18043158]
[1609606530110,0.11489,32464.0,32455.0,0.03816113]
[1609606531312,0.11489,32464.0,32447.0,0.03816075]
[1609606531515,0.18043158,32454.0,32452.0,0.18043158]
[1609606531915,0.18043158,32454.0,32453.0,0.03816049]
[1609606533519,0.18043158,32458.0,32453.0,0.03816049]
[1609606534928,0.11489,32464.0,32453.0,0.03816049]
[1609606535128,0.2963,32470.0,32453.0,0.03816049]
[1609606535522,0.2963,32470.0,32469.0,0.18043158]
[1609606535923,0.2963,32470.0,32449.0,0.07546136]
[1609606536128,0.45836,32470.0,32449.0,0.07546136]
[1609606536929,0.45836,32470.0,32445.0,0.1359]
[1609606537331,1.0,32469.0,32445.0,0.1359]
[1609606537624,1.0,32469.0,32455.0,0.18043158]
[1609606538223,0.45836,32470.0,32455.0,0.18043158]
[1609606539625,0.18043158,32465.0,32462.0,0.18043158]
[1609606540027,0.45836,32470.0,32462.0,0.18043158]
[1609606541730,0.45836,32470.0,32469.0,0.18043158]
[1609606541931,0.16206,32470.0,32469.0,0.18043158]
[1609606542129,0.2746,32496.0,32469.0,0.18043158]
[1609606542829,1.0,32495.0,32469.0,0.18043158]
[1609606543027,1.16837,32495.0,32469.0,0.18043158]
[1609606543528,0.16837,32495.0,32469.0,0.18043158]
[1609606543728,0.16837,32495.0,32482.0,0.18043158]
[1609606544528,0.16837,32495.0,32470.0,5.1387]
[1609606545730,0.16837,32495.0,32481.0,0.18043158]
[1609606547731,0.16837,32495.0,32485.0,0.18043158]
[1609606548130,0.2746,32496.0,32485.0,0.18043158]
[1609606549733,0.2746,32496.0,32491.0,0.18043158]
[1609606550436,0.276,32508.0,32491.0,0.18043158]
[1609606551237,1.276,32508.0,32491.0,0.18043158]
[1609606551737,0.18043158,32492.0,32491.0,0.18043158]
[1609606551937,0.18043158,32492.0,32484.0,3.8803]
[1609606553341,0.18043158,32492.0,32482.0,0.14631]
[1609606553740,0.18043158,32483.0,32482.0,0.14631]
[1609606554441,1.18043158,32483.0,32477.0,0.03]
[1609606554841,0.18043158,32483.0,32477.0,0.03]
[1609606555842,0.16748,32487.0,32477.0,0.03]
[1609606556444,0.18043158,32478.0,32477.0,0.03]
[1609606558347,0.18043158,32478.0,32477.0,0.21043158]
[1609606558546,0.16748,32487.0,32477.0,0.21043158]
[1609606559346,0.1374,32498.0,32477.0,0.21043158]
[1609606559550,1.0,32504.0,32477.0,0.21043158]
[1609606560048,5.00803,32507.0,32477.0,0.21043158]
[1609606560448,5.00803,32507.0,32495.0,0.18043158]
[1609606561448,5.00803,32507.0,32482.0,0.14106]
[1609606561649,0.12823,32507.0,32482.0,0.14106]
[1609606561849,1.0,32525.0,32482.0,0.14106]
[1609606562249,1.0,32524.0,32482.0,0.14106]
[1609606562449,1.0,32524.0,32494.0,0.18043158]
[1609606563050,1.28282369,32538.0,32494.0,0.18043158]
[1609606563352,1.0,32532.0,32494.0,0.18043158]
[1609606563551,1.0,32536.0,32494.0,0.18043158]
[1609606564354,1.0,32534.0,32494.0,0.18043158]
[1609606564555,0.28282369,32538.0,32513.0,0.18043158]
[1609606565156,0.00832369,32538.0,32513.0,0.90023158]
[1609606565957,0.00837008,32540.0,32513.0,0.90023158]
[1609606566156,0.00837008,32540.0,32513.0,1.18043158]
[1609606566355,0.49252171,32542.0,32523.0,4.3079]
[1609606566556,0.49252171,32542.0,32541.0,0.18043158]
[1609606566957,0.49252171,32542.0,32541.0,0.30856158]
[1609606567857,0.49252171,32542.0,32541.0,4.14016158]
[1609606568859,0.49252171,32542.0,32541.0,0.30856158]
[1609606569460,0.24802171,32542.0,32541.0,0.30856158]
[1609606570864,0.01040493,32543.0,32541.0,0.30856158]
[1609606571066,0.8207601,32549.0,32542.0,3.8076]
[1609606571465,0.8207601,32549.0,32541.0,0.32036158]
[1609606571665,0.8207601,32549.0,32546.0,4.488]
[1609606572165,0.8207601,32549.0,32541.0,0.32036158]
[1609606572369,2.97062203,32588.0,32541.0,0.32036158]
[1609606572370,0.18043158,32588.0,32546.0,5.0994]
[1609606572567,0.40784,32597.0,32586.0,0.18043158]
[1609606572767,0.11314,32597.0,32586.0,0.18043158]
[1609606572968,0.83164259,32611.0,32586.0,0.18043158]
[1609606574568,0.83164259,32611.0,32606.0,0.18043158]
[1609606575768,0.81664259,32611.0,32606.0,0.18043158]
[1609606575969,0.2714,32639.0,32606.0,0.18043158]
[1609606575970,0.2714,32639.0,32606.0,0.28777158]
[1609606576370,0.2714,32639.0,32609.0,4.3608]
[1609606576571,0.2714,32639.0,32606.0,0.10734]
[1609606576772,0.4263,32639.0,32606.0,0.10734]
[1609606577773,1.0,32638.0,32606.0,0.10734]
[1609606577974,1.2753,32638.0,32606.0,0.10734]
[1609606578172,1.0,32638.0,32596.0,0.12698]
[1609606578372,0.3001,32637.0,32596.0,0.12698]
[1609606578572,0.18043158,32597.0,32593.0,0.18043158]
[1609606579373,0.18043158,32597.0,32587.0,1.95842345]
[1609606580474,0.11622,32601.0,32588.0,0.18043158]
[1609606580876,0.2893,32609.0,32588.0,0.18043158]
[1609606581275,0.2893,32609.0,32588.0,0.34733158]
[1609606582479,0.2893,32609.0,32592.0,0.18043158]
[1609606582679,1.0,32608.0,32588.0,0.1669]
[1609606582878,1.0,32608.0,32587.0,1.95842345]
[1609606584379,1.2893,32609.0,32587.0,1.95842345]
[1609606584578,0.18043158,32588.0,32587.0,1.95842345]
[1609606585180,1.0,32601.0,32581.0,0.10692]
[1609606585681,1.0,32601.0,32568.0,1.95742066]
[1609606585879,0.0917,32600.0,32568.0,1.95742066]
[1609606586079,0.1424,32602.0,32568.0,1.95742066]
[1609606586281,0.1424,32602.0,32568.0,2.07473066]
[1609606586479,0.1424,32602.0,32584.0,0.18043158]
[1609606587079,0.1424,32602.0,32585.0,0.03799912]
[1609606588480,0.18043158,32592.0,32585.0,0.03799912]
[1609606589681,0.1424,32602.0,32585.0,0.03799912]
[1609606589682,1.0,32601.0,32585.0,0.03799912]
[1609606590482,0.18043158,32586.0,32585.0,0.03799912]
[1609606590982,0.18043158,32586.0,32585.0,0.0759959]
[1609606591584,0.18043158,32586.0,32585.0,0.11399068]
[1609606592282,0.18043158,32586.0,32585.0,0.15198523]
[1609606593184,1.0,32600.0,32585.0,0.15198523]
[1609606593385,1.0,32600.0,32586.0,0.03799891]
[1609606594089,1.0,32599.0,32586.0,0.03799891]
[1609606594588,0.18043158,32587.0,32586.0,0.03799891]
[1609606594788,1.18043158,32587.0,32577.0,0.18043158]
[1609606594989,1.18043158,32587.0,32574.0,0.26350352]
[1609606595188,1.18043158,32587.0,32578.0,0.03799921]
[1609606595787,1.18043158,32587.0,32579.0,0.03800735]
[1609606596589,0.18043158,32580.0,32551.0,0.18043158]
[1609606596788,1.0,32579.0,32551.0,0.18043158]
[1609606596989,0.2734,32578.0,32552.0,0.03801565]
[1609606597189,1.0,32577.0,32552.0,0.03801565]
[1609606597590,1.0,32577.0,32553.0,0.03801517]
[1609606597791,0.81956842,32577.0,32553.0,0.03801517]
[1609606598591,0.18043158,32554.0,32553.0,0.03801517]
[1609606599194,0.81956842,32564.0,32553.0,0.03801517]
[1609606599991,0.17156,32565.0,32553.0,0.03801517]
[1609606600592,0.17156,32565.0,32558.0,0.18043158]
[1609606600992,0.81956842,32564.0,32559.0,0.03801976]
[1609606601492,0.0249,32554.0,32553.0,0.03801517]
[1609606602092,0.0249,32554.0,32553.0,0.07603036]
[1609606602292,0.0249,32554.0,32553.0,0.11404408]
[1609606602492,0.0249,32554.0,32553.0,0.15205737]
[1609606602692,0.0249,32554.0,32553.0,0.33248895]
[1609606602893,0.0249,32554.0,32553.0,0.37050342]
[1609606603495,0.82179207,32565.0,32553.0,0.37050342]
[1609606603895,0.82179207,32565.0,32554.0,0.03801539]
[1609606604095,0.00222365,32565.0,32554.0,0.03801539]
[1609606604296,0.00222365,32565.0,32554.0,0.19530539]
[1609606604596,0.12325,32572.0,32564.0,0.18043158]
[1609606605196,0.2734,32578.0,32565.0,0.03801385]
[1609606605496,0.2734,32578.0,32565.0,0.15047385]
[1609606605896,0.2734,32578.0,32566.0,0.03801059]
[1609606606100,0.2734,32578.0,32566.0,0.075611]
[1609606606298,0.2734,32578.0,32566.0,0.07602005]
[1609606606696,1.0,32577.0,32576.0,0.18043158]
[1609606607098,1.0,32577.0,32567.0,0.07601816]
[1609606607297,1.0,32577.0,32576.0,0.03801078]
[1609606607697,1.0,32577.0,32576.0,0.07602406]
[1609606608099,1.0,32592.0,32576.0,0.11403783]
[1609606608498,1.0,32592.0,32577.0,0.03801049]
[1609606608698,1.0,32592.0,32590.0,0.18043158]
[1609606608899,1.0,32592.0,32577.0,0.03801049]
[1609606609099,1.14748,32592.0,32591.0,0.03800467]
[1609606609298,0.14748,32592.0,32591.0,0.03800467]
[1609606609798,0.14748,32592.0,32591.0,0.07600644]
[1609606610399,0.14748,32592.0,32591.0,0.11400833]
[1609606610600,1.32791158,32592.0,32591.0,0.11400833]
[1609606611199,1.32791158,32592.0,32591.0,0.15201251]
[1609606611401,1.32791158,32592.0,32591.0,0.19001908]
[1609606612002,1.32791158,32592.0,32591.0,0.22803014]
[1609606612200,1.32791158,32592.0,32591.0,0.26604109]
[1609606612401,1.32791158,32592.0,32591.0,0.30404884]
[1609606612601,0.01,32591.0,32579.0,0.0380011]
[1609606613001,0.01,32591.0,32580.0,0.03800463]
[1609606613201,0.01,32591.0,32580.0,0.07601155]
[1609606613403,0.01,32591.0,32581.0,0.00040226]
[1609606614603,0.18043158,32582.0,32581.0,0.18083384]
[1609606614804,1.29080158,32582.0,32581.0,0.18083384]
[1609606615204,1.29080158,32582.0,32581.0,0.00040226]
[1609606615504,1.29080158,32582.0,32581.0,0.03840569]
[1609606616104,1.29080158,32582.0,32581.0,0.00040226]
[1609606616304,1.29080158,32582.0,32581.0,0.03840576]
[1609606616504,1.29080158,32582.0,32581.0,0.07640986]
[1609606616904,1.29080158,32582.0,32581.0,0.03840576]
[1609606617107,1.29080158,32582.0,32581.0,0.07641136]
[1609606617305,1.29080158,32582.0,32581.0,0.11441674]
[1609606617505,1.29080158,32582.0,32581.0,0.15242321]
[1609606617904,1.29080158,32582.0,32581.0,0.19043001]
[1609606618105,1.29080158,32582.0,32581.0,0.22843648]
[1609606618305,0.01,32581.0,32580.0,0.07601155]
[1609606618705,0.01,32581.0,32580.0,0.11401809]
[1609606620109,0.01,32580.0,32579.0,0.0380011]
[1609606620506,0.01,32580.0,32579.0,0.07601122]
[1609606622707,1.01,32580.0,32579.0,0.07601122]
[1609606622907,1.01,32580.0,32576.0,0.11403783]
[1609606623108,1.01,32580.0,32566.0,0.07602005]
[1609606623310,1.01,32580.0,32577.0,0.03800764]
[1609606623508,1.01,32580.0,32569.0,0.03800836]
[1609606623909,1.1026,32580.0,32578.0,0.03800972]
[1609606624109,1.01,32580.0,32570.0,0.03800616]
[1609606624309,1.01,32580.0,30601.0,0.0720754]
[1609606624508,1.01,32580.0,32456.0,4.26404415]
[1609606624709,1.01,32580.0,32562.0,0.0752361]
[1609606624910,0.72878123,32580.0,32574.0,2.02393045]
[1609606625111,0.81988123,32580.0,32570.0,0.80093458]
[1609606625310,0.81988123,32580.0,32563.0,0.03802462]
[1609606625509,0.0911,32580.0,32575.0,0.00038826]
[1609606625709,0.0911,32580.0,32568.0,0.03802854]
[1609606625911,0.0911,32580.0,32576.0,0.00038826]
[1609606626111,0.0911,32580.0,32561.0,0.03763912]
[1609606626311,0.0911,32580.0,32546.0,0.07527824]
[1609606626511,0.0911,32580.0,32562.0,0.03802868]
[1609606626712,0.18043158,32563.0,32561.0,0.03802526]
[1609606626911,0.29422158,32563.0,32562.0,0.03802879]
[1609606627411,0.29422158,32563.0,32562.0,0.00038827]
[1609606627613,0.29422158,32563.0,32546.0,0.07527824]
[1609606627812,0.29422158,32563.0,32562.0,0.03802877]
[1609606628012,0.11379,32563.0,32536.0,0.03802624]
[1609606628212,0.11379,32563.0,32562.0,0.03801792]
[1609606628412,0.11343,32570.0,32562.0,0.03801792]
[1609606628630,0.2903,32580.0,32551.0,4.5025]
[1609606628837,1.0,32579.0,32563.0,0.03762194]
[1609606629029,1.0,32579.0,32570.0,0.03800698]
[1609606629424,1.0,32579.0,32564.0,0.03798361]
[1609606629624,1.0,32579.0,32571.0,0.03800462]
[1609606629816,1.0,32579.0,32549.0,0.11178]
[1609606629817,1.0,32579.0,32550.0,0.03800449]
[1609606630018,1.0,32579.0,32572.0,0.00038802]
[1609606630229,1.0,32579.0,32572.0,0.03800603]
[1609606630422,1.0,32579.0,32551.0,0.03800594]
[1609606630624,1.0,32579.0,32573.0,0.03800664]
[1609606630820,1.0,32579.0,32540.0,0.23356294]
[1609606631213,1.0,32579.0,32574.0,0.03800932]
[1609606631527,1.0,32579.0,32550.0,2.21654866]
[1609606631729,1.0,32578.0,32575.0,0.03800976]
[1609606631928,1.0,32578.0,32559.0,4.4916]
[1609606632126,1.0,32578.0,32576.0,0.03761468]
[1609606632312,1.0,32578.0,32576.0,0.03800268]
[1609606632515,1.0,32578.0,32560.0,0.11322899]
[1609606632715,1.0,32578.0,32577.0,0.03800201]
[1609606632915,1.0,32577.0,32564.0,0.18043158]
[1609606633315,1.0,32577.0,32565.0,0.03800194]
[1609606633515,1.0,32577.0,32565.0,0.19697194]
[1609606633715,1.0,32577.0,32566.0,0.03799874]
[1609606633916,1.0,32576.0,32566.0,0.03799874]
[1609606634316,0.0932,32575.0,32566.0,0.03799874]
[1609606634516,1.0,32576.0,32566.0,0.03799874]
[1609606634716,0.18043158,32567.0,32566.0,0.03799874]
[1609606634916,1.18043158,32567.0,32565.0,0.03799678]
[1609606635318,1.18043158,32567.0,32566.0,0.03800039]
[1609606635716,1.18043158,32567.0,32565.0,0.03800167]
[1609606635916,1.18043158,32567.0,32566.0,0.03800193]
[1609606636519,1.18043158,32567.0,32556.0,0.0380044]
[1609606636720,0.18043158,32557.0,32555.0,0.18043158]
[1609606636922,1.18043158,32557.0,32555.0,0.18043158]
[1609606637123,1.18043158,32557.0,32551.0,0.07522802]
[1609606637324,1.18043158,32557.0,32556.0,0.03800554]
[1609606637524,1.18043158,32557.0,32552.0,0.0380079]
[1609606637925,1.18043158,32557.0,32556.0,0.03800933]
[1609606638124,1.18043158,32557.0,32546.0,0.11324424]
[1609606638324,1.18043158,32557.0,32556.0,0.0380079]
[1609606638526,1.18043158,32557.0,32547.0,0.03800851]
[1609606638725,0.18043158,32548.0,32547.0,0.03800851]
[1609606638925,1.18043158,32548.0,32546.0,0.29367577]
[1609606639126,0.89933202,32548.0,32547.0,0.03801029]
[1609606639927,0.99073202,32548.0,32547.0,0.03801029]
[1609606640127,0.99073202,32548.0,32546.0,0.11325024]
[1609606640528,0.99073202,32548.0,32547.0,0.03801687]
[1609606640728,1.0797636,32548.0,32547.0,0.03801687]
[1609606641028,1.0797636,32548.0,32546.0,0.11325347]
[1609606641229,1.0797636,32548.0,32547.0,0.03801943]
[1609606641429,0.89933202,32548.0,32547.0,4.29146917]
[1609606641628,0.99273202,32548.0,32547.0,4.29146917]
[1609606641828,0.99273202,32548.0,32547.0,4.25344974]
[1609606642030,0.27383158,32548.0,32547.0,4.36672428]
[1609606642229,0.99273202,32548.0,32547.0,4.40474104]
[1609606642432,0.81230044,32548.0,32547.0,0.1512913]
[1609606642830,0.0934,32548.0,32547.0,0.0760337]
[1609606643032,0.2819,32558.0,32547.0,0.0760337]
[1609606643230,0.2819,32558.0,32548.0,0.03801234]
[1609606643632,0.2819,32558.0,32548.0,0.11324385]
[1609606643832,0.2819,32558.0,32548.0,0.24049385]
[1609606644434,0.2819,32558.0,32549.0,0.03799888]
[1609606644834,0.2819,32558.0,32557.0,0.18043158]
[1609606645035,0.00091032,32558.0,32557.0,2.21407693]
[1609606645434,0.00091032,32558.0,32557.0,2.32729766]
[1609606645637,0.0914,32566.0,32557.0,6.95012606]
[1609606645834,1.0,32573.0,32557.0,6.95012606]
[1609606646135,1.0,32573.0,32558.0,0.11321113]
[1609606646836,1.0,32573.0,32572.0,0.18043158]
[1609606647238,1.0,32573.0,32572.0,0.21842993]
[1609606648038,1.0908,32573.0,32572.0,0.21842993]
[1609606649341,1.0908,32573.0,32572.0,2.25366361]
[1609606649541,0.0908,32573.0,32572.0,2.25366361]
[1609606649943,0.16988,32574.0,32572.0,2.32886647]
[1609606650144,1.5,32581.0,32572.0,2.32886647]
[1609606650344,1.5,32581.0,32573.0,0.11319316]
[1609606650746,0.5,32581.0,32579.0,0.18043158]
[1609606651145,1.2903,32580.0,32579.0,0.21842033]
[1609606651945,0.2903,32580.0,32579.0,0.21842033]
[1609606652449,0.2903,32580.0,32579.0,2.25386135]
[1609606652947,0.2903,32580.0,32579.0,2.32904759]
[1609606653449,1.2903,32580.0,32579.0,2.32904759]
[1609606653650,1.0,32580.0,32579.0,4.55062571]
[1609606654048,1.0922,32580.0,32579.0,4.55062571]
[1609606654248,1.0922,32580.0,32579.0,2.32904759]
[1609606654448,0.0922,32580.0,32579.0,2.32904759]
[1609606655349,0.81134596,32581.0,32579.0,4.55113045]
[1609606655748,0.81134596,32581.0,32580.0,0.03759484]
[1609606655951,0.81134596,32581.0,32580.0,0.11317608]
[1609606656349,0.81134596,32581.0,32580.0,0.03798641]
[1609606656750,0.99177754,32581.0,32580.0,0.03798641]
[1609606657653,0.99177754,32581.0,32580.0,0.06798641]
[1609606660557,0.99177754,32581.0,32580.0,0.03039157]
[1609606660757,0.71081248,32581.0,32580.0,0.03039157]
[1609606660958,0.85475248,32581.0,32579.0,2.76132388]
[1609606662660,0.85475248,32581.0,32565.0,0.18043158]
[1609606662862,0.85475248,32581.0,32576.0,0.18043158]
[1609606663360,0.85475248,32581.0,32577.0,0.03799834]
[1609606664361,0.85475248,32581.0,32577.0,0.00039169]
[1609606664762,0.18043158,32578.0,32572.0,0.18043158]
[1609606664963,0.71081248,32577.0,32562.0,0.03760751]
[1609606665162,0.71081248,32577.0,32573.0,0.03800148]
[1609606665562,0.71081248,32577.0,32554.0,2.59192569]
[1609606665563,0.71081248,32577.0,32562.0,0.0380034]
[1609606665762,0.71081248,32577.0,32574.0,0.00039174]
[1609606665962,0.71081248,32577.0,32563.0,0.03800456]
[1609606666364,0.71081248,32577.0,32561.0,0.03800615]
[1609606666564,0.71081248,32577.0,32564.0,0.03800688]
[1609606666765,0.18043158,32565.0,32564.0,0.18043158]
[1609606666965,0.84144248,32565.0,32564.0,0.18043158]
[1609606667366,0.84144248,32565.0,32564.0,0.21843783]
[1609606668167,0.84144248,32565.0,32564.0,0.03800625]
[1609606668666,0.84144248,32565.0,32557.0,0.11324042]
[1609606668867,0.18043158,32558.0,32557.0,0.07522962]
[1609606669066,1.05690406,32558.0,32557.0,0.07522962]
[1609606669467,1.05690406,32558.0,32557.0,0.11324145]
[1609606669667,1.05690406,32558.0,32557.0,0.03801183]
[1609606670069,1.05690406,32558.0,32557.0,0.03762]
[1609606670268,1.05690406,32558.0,32557.0,0.03801189]
[1609606671069,1.05690406,32558.0,32555.0,0.03802143]
[1609606671270,1.05690406,32558.0,32557.0,0.03802141]
[1609606671473,1.05690406,32558.0,32556.0,0.03802258]
[1609606671773,1.05690406,32558.0,32557.0,0.03802211]
[1609606671972,1.05690406,32558.0,32557.0,0.00039193]
[1609606672172,1.05690406,32558.0,32554.0,2.22334401]
[1609606672373,1.05690406,32558.0,32557.0,0.03802628]
[1609606672574,1.05690406,32558.0,32555.0,0.03802663]
[1609606672774,1.05690406,32558.0,32557.0,0.03802667]
[1609606673176,1.05690406,32558.0,32543.0,2.03925672]
[1609606673377,1.05690406,32558.0,32557.0,0.03802663]
[1609606673575,1.05690406,32558.0,32544.0,0.07526927]
[1609606673576,1.05690406,32558.0,32546.0,0.03802654]
[1609606673776,1.05690406,32558.0,32557.0,0.00039199]
[1609606673976,2.05690406,32558.0,32544.0,0.07526927]
[1609606674176,2.05690406,32558.0,32547.0,0.03802624]
[1609606674377,2.05690406,32558.0,32546.0,0.03802677]
[1609606674577,2.05690406,32558.0,32548.0,0.03802772]
[1609606674978,0.18043158,32549.0,32547.0,0.03802589]
[1609606675178,0.71081248,32548.0,32546.0,0.0380254]
[1609606675379,0.71081248,32548.0,32547.0,0.03802473]
[1609606675979,0.71081248,32548.0,32546.0,0.03802558]
[1609606676179,0.71081248,32548.0,32547.0,0.03802621]
[1609606676581,0.71081248,32548.0,32546.0,0.03802725]
[1609606676782,0.71081248,32548.0,32547.0,0.03802758]
[1609606677282,0.71081248,32548.0,32546.0,0.03802683]
[1609606677482,0.71081248,32548.0,32547.0,0.03802526]
[1609606677783,0.71081248,32548.0,32546.0,0.03802516]
[1609606677984,0.71081248,32548.0,32547.0,0.03802491]
[1609606678281,0.71081248,32548.0,32546.0,0.03802379]
[1609606678682,0.71081248,32548.0,32547.0,0.03802369]
[1609606679082,0.71081248,32548.0,32545.0,0.03]
[1609606679083,0.71081248,32548.0,32546.0,0.03802362]
[1609606679282,0.71081248,32548.0,32547.0,0.03802648]
[1609606679586,0.71081248,32548.0,32546.0,0.03802622]
[1609606679884,0.71081248,32548.0,32547.0,0.03802622]
[1609606680485,0.71081248,32548.0,32546.0,0.03802648]
[1609606680684,0.71081248,32548.0,32547.0,0.03802684]
[1609606681187,0.71081248,32548.0,32546.0,0.03802709]
[1609606681386,0.71081248,32548.0,32547.0,0.03802747]
[1609606681786,0.71081248,32548.0,32546.0,0.03802793]
[1609606681987,0.71081248,32548.0,32547.0,0.03802784]
[1609606682588,0.71081248,32548.0,32546.0,0.03802812]
[1609606682789,0.71081248,32548.0,32547.0,0.03763713]
[1609606683388,0.32139158,32549.0,32545.0,0.03]
[1609606683589,0.32139158,32549.0,32536.0,2.03710458]
[1609606683789,0.32139158,32549.0,32531.0,2.22345785]
[1609606683790,0.32139158,32549.0,32537.0,0.0003922]
[1609606683988,0.41419158,32549.0,32536.0,0.00039224]
[1609606684288,0.41419158,32549.0,32538.0,0.00039201]
[1609606684689,0.41419158,32549.0,32509.0,2.03747429]
[1609606684888,0.23376,32549.0,32539.0,0.00039228]
[1609606685088,0.23376,32549.0,32510.0,0.03766397]
[1609606685291,0.23376,32549.0,32510.0,0.03805627]
[1609606685491,0.0170085,32545.0,32510.0,0.03805627]
[1609606685890,0.2844,32544.0,32488.0,0.03806295]
[1609606686090,0.2844,32544.0,32511.0,0.00039236]
[1609606686293,0.01697396,32539.0,32511.0,0.00039236]
[1609606686492,0.01697396,32539.0,32476.0,2.87429152]
[1609606686493,0.17009396,32539.0,32488.0,0.03804269]
[1609606686691,0.17009396,32539.0,32512.0,0.00039217]
[1609606686892,0.18043158,32513.0,32497.0,0.18043158]
[1609606687093,0.34755158,32513.0,32497.0,0.18043158]
[1609606687294,4.9876,32504.0,32484.0,0.03767658]
[1609606687494,0.0918,32503.0,32498.0,0.00039248]
[1609606687695,0.0918,32503.0,32471.0,2.58658929]
[1609606687895,4.5489,32499.0,32471.0,2.58658929]
[1609606688095,0.0925,32498.0,32485.0,0.00039266]
[1609606688294,0.0925,32498.0,32471.0,2.58658929]
[1609606688798,0.0925,32498.0,32472.0,0.00039283]
[1609606688994,0.18043158,32473.0,32465.0,2.58917569]
[1609606689195,0.30845158,32473.0,32465.0,2.58917569]
[1609606689395,5.0298,32470.0,32466.0,0.0003929]
[1609606689896,0.30845158,32473.0,32466.0,0.0003929]
[1609606690896,0.18043158,32469.0,32466.0,0.0003929]
[1609606691098,1.0,32468.0,32461.0,0.18043158]
[1609606692097,1.0,32468.0,32424.0,0.2755]
[1609606692499,1.0,32468.0,32431.0,0.0003929]
[1609606692697,1.0,32468.0,32425.0,0.00039294]
[1609606692897,1.0,32468.0,32449.0,0.18043158]
[1609606693097,1.0,32467.0,32449.0,0.18043158]
[1609606694099,1.0,32470.0,32449.0,0.18043158]
[1609606694301,0.2736,32471.0,32449.0,0.18043158]
[1609606695102,0.2736,32471.0,32470.0,0.18043158]
[1609606696503,0.01630145,32496.0,32470.0,0.18043158]
[1609606696905,0.01630145,32496.0,32488.0,0.18043158]
[1609606697106,1.0,32497.0,32471.0,0.00039265]
[1609606697306,0.01639931,32498.0,32471.0,0.00039265]
[1609606697506,0.01639931,32498.0,32458.0,0.00039261]
[1609606697709,1.0,32499.0,32472.0,0.00039261]
[1609606697907,1.0,32499.0,32459.0,0.00039261]
[1609606698308,1.0,32503.0,32458.0,0.00039255]
[1609606698508,1.0,32503.0,32457.0,4.1066]
[1609606698509,1.0,32503.0,32460.0,0.00039255]
[1609606698709,0.13114,32504.0,32458.0,0.00039255]
[1609606698909,0.19695717,32509.0,32503.0,0.18043158]
[1609606699109,0.01652559,32509.0,32503.0,0.18043158]
[1609606699910,1.16712,32513.0,32503.0,0.18043158]
[1609606700110,0.16712,32513.0,32503.0,0.18043158]
[1609606700311,0.01654431,32517.0,32503.0,0.18043158]
[1609606700911,0.18043158,32515.0,32508.0,0.18043158]
[1609606701110,0.33167158,32515.0,32508.0,0.18043158]
[1609606701511,1.0,32514.0,32508.0,0.18043158]
[1609606701712,1.0,32514.0,32475.0,0.14142]
[1609606702112,1.0,32514.0,32476.0,0.00039227]
[1609606702914,0.18043158,32487.0,32483.0,0.18043158]
[1609606703116,0.31106158,32487.0,32483.0,0.18043158]
[1609606703714,0.13063,32487.0,32483.0,0.18043158]
[1609606704114,0.13063,32487.0,32456.0,5.0254]
[1609606704715,0.13063,32487.0,32457.0,0.00039269]
[1609606704915,1.13063,32487.0,32480.0,0.18043158]
[1609606705116,1.13063,32487.0,32451.0,0.00039272]
[1609606705316,1.13063,32487.0,32458.0,0.00039274]
[1609606705518,1.13063,32487.0,32452.0,0.00039059]
[1609606705917,1.13063,32487.0,32451.0,0.0003909]
[1609606706116,1.13063,32487.0,32453.0,0.0003909]
[1609606706316,1.13063,32487.0,32452.0,0.0003909]